bitfinex-derivatives/quotes_BTCF0:USTF0_20250926
["timestamp","ask_amount","ask_price","bid_price","bid_amount"]
[1758904425555,0.09765786,109410.0,109400.0,1.76618943]
[1758904426055,0.12154738,109410.0,109400.0,1.77548911]
[1758904427055,0.12154738,109410.0,109400.0,0.51230943]
[1758904427259,0.12154738,109410.0,109400.0,1.07186822]
[1758904427854,0.12154738,109410.0,109400.0,1.36610943]
[1758904429063,0.12154738,109410.0,109400.0,0.51230943]
[1758904429249,0.09765786,109410.0,109400.0,0.51230943]
[1758904429655,0.12156166,109410.0,109400.0,1.36602943]
[1758904429860,0.12156166,109410.0,109400.0,0.51230943]
[1758904430055,0.12156166,109410.0,109400.0,0.98038472]
[1758904430356,0.42931141,109410.0,109400.0,0.98038472]
[1758904430556,0.1350702,109410.0,109400.0,0.12666472]
[1758904430758,0.1350702,109410.0,109400.0,0.45823115]
[1758904430759,0.46663663,109410.0,109400.0,0.45823115]
[1758904431263,0.44273429,109410.0,109400.0,0.45823115]
[1758904431856,0.44273429,109410.0,109400.0,0.12666472]
[1758904432058,0.44273429,109410.0,109400.0,0.45823115]
[1758904433361,0.11116786,109410.0,109400.0,0.45823115]
[1758904433557,0.44273429,109410.0,109400.0,0.45823115]
[1758904433963,0.09765786,109410.0,109400.0,0.45823115]
[1758904437355,0.42922429,109410.0,109400.0,0.12666472]
[1758904437550,0.42922429,109410.0,109400.0,0.45823115]
[1758904438563,0.09765786,109410.0,109400.0,0.45823115]
[1758904440758,0.42922429,109410.0,109400.0,0.12666472]
[1758904440954,0.42922429,109410.0,109400.0,0.45823115]
[1758904442062,0.09765786,109410.0,109400.0,0.45823115]
[1758904442258,0.42922429,109410.0,109400.0,0.12666472]
[1758904442751,0.42922429,109410.0,109400.0,0.45823115]
[1758904442957,0.09765786,109410.0,109400.0,0.45823115]
[1758904443256,0.42922429,109410.0,109400.0,0.45823115]
[1758904443767,0.09765786,109410.0,109400.0,0.45823115]
[1758904443963,0.42922429,109410.0,109400.0,0.45823115]
[1758904444565,0.09765786,109410.0,109400.0,0.45823115]
[1758904444767,0.07471786,109410.0,109400.0,0.45823115]
[1758904445067,0.07471786,109410.0,109400.0,1.28120108]
[1758904445268,0.07471786,109410.0,109400.0,0.94963465]
[1758904445968,0.07471786,109410.0,109400.0,0.61806822]
[1758904446169,0.09764786,109410.0,109400.0,0.94963465]
[1758904446371,0.07471786,109410.0,109400.0,0.94963465]
[1758904446757,0.07471786,109410.0,109400.0,1.80283465]
[1758904447669,0.07471786,109410.0,109400.0,0.94963465]
[1758904447872,0.09764786,109410.0,109400.0,0.94963465]
[1758904448064,0.07471786,109410.0,109400.0,1.80279465]
[1758904449969,0.07471786,109410.0,109400.0,1.80179465]
[1758904450169,0.07471786,109410.0,109400.0,1.80279465]
[1758904450767,0.02293,109440.0,109430.0,0.1275643]
[1758904450971,0.02293,109440.0,109430.0,0.45913073]
[1758904451270,0.45963233,109440.0,109430.0,0.45913073]
[1758904451578,0.37736274,109440.0,109430.0,0.45913073]
[1758904451775,0.46867864,109440.0,109430.0,0.44578073]
[1758904452071,0.49756746,109440.0,109430.0,0.1142143]
[1758904452572,0.49756746,109440.0,109430.0,0.44578073]
[1758904454275,1.31247663,109430.0,109420.0,0.0913272]
[1758904454474,0.1279989,109420.0,109410.0,0.1130954]
[1758904454766,0.1279989,109420.0,109410.0,0.0913354]
[1758904454767,0.45956533,109420.0,109410.0,0.0913354]
[1758904455563,0.1279989,109420.0,109410.0,0.1130954]
[1758904455767,0.36822643,109420.0,109410.0,0.1130954]
[1758904456572,0.36822643,109420.0,109410.0,0.45827183]
[1758904456875,0.02309,109420.0,109410.0,0.45927183]
[1758904457072,0.02509,109420.0,109410.0,0.45927183]
[1758904457771,0.37022643,109420.0,109410.0,0.45927183]
[1758904459771,0.86156003,109420.0,109410.0,0.1130954]
[1758904460273,0.77022643,109420.0,109410.0,0.1130954]
[1758904461777,0.86156003,109420.0,109410.0,0.1130954]
[1758904461972,0.86156003,109420.0,109410.0,0.0913354]
[1758904462476,0.5299932,109420.0,109410.0,0.0913354]
[1758904462669,0.86155963,109420.0,109410.0,0.1130954]
[1758904462976,0.86155963,109420.0,109410.0,0.0913354]
[1758904463380,0.86155963,109420.0,109410.0,0.1130954]
[1758904463570,0.86155963,109420.0,109410.0,0.0913354]
[1758904464167,0.37022643,109420.0,109410.0,0.1130954]
[1758904464368,0.02509,109420.0,109410.0,0.44566183]
[1758904464579,1.03379953,109420.0,109410.0,0.1130954]
[1758904464873,1.43379953,109420.0,109410.0,0.0913354]
[1758904465081,0.1280014,109410.0,109400.0,0.09145802]
[1758904465272,0.79113426,109410.0,109400.0,0.09245802]
[1758904465473,0.79113426,109410.0,109400.0,1.59245802]
[1758904465674,0.45956783,109410.0,109400.0,1.59245802]
[1758904465981,0.79113426,109410.0,109400.0,0.09245802]
[1758904466478,0.79113426,109410.0,109400.0,1.59245802]
[1758904467479,0.1280018,109410.0,109400.0,1.59245802]
[1758904467779,1.31224823,109410.0,109400.0,1.59245802]
[1758904467974,0.9806818,109410.0,109400.0,1.59245802]
[1758904468274,0.79113466,109410.0,109400.0,1.59245802]
[1758904468680,1.31220823,109410.0,109400.0,1.59245802]
[1758904469474,0.45956823,109410.0,109400.0,1.59245802]
[1758904469881,1.31076823,109410.0,109400.0,1.59245802]
[1758904471482,0.36822643,109410.0,109400.0,1.59245802]
[1758904471680,1.22086643,109410.0,109400.0,1.59245802]
[1758904472181,1.22082643,109410.0,109400.0,1.60606802]
[1758904472483,1.22082643,109410.0,109400.0,1.59245802]
[1758904472874,1.22082643,109410.0,109400.0,1.60606802]
[1758904473274,1.22082643,109410.0,109400.0,1.59245802]
[1758904473476,0.02309,109410.0,109400.0,1.93763445]
[1758904473774,0.49653,109410.0,109400.0,1.93763445]
[1758904473978,0.35465643,109410.0,109400.0,1.93763445]
[1758904476883,0.35465643,109410.0,109400.0,2.33763445]
[1758904477771,0.02309,109410.0,109400.0,2.33763445]
[1758904477975,1.20717643,109420.0,109410.0,0.1267113]
[1758904478278,1.20717643,109420.0,109410.0,0.45927773]
[1758904478483,0.35465643,109420.0,109410.0,0.45927773]
[1758904478685,1.20717643,109420.0,109410.0,0.45927773]
[1758904479480,0.87561,109420.0,109410.0,0.45927773]
[1758904479784,1.22074643,109420.0,109410.0,0.45927773]
[1758904479984,1.22074643,109420.0,109410.0,0.1267113]
[1758904480184,1.22074643,109420.0,109410.0,0.1277113]
[1758904480887,1.22274643,109420.0,109410.0,0.1277113]
[1758904481086,1.22274643,109420.0,109410.0,0.45927773]
[1758904481385,0.89118,109420.0,109410.0,0.45927773]
[1758904481585,1.22274643,109420.0,109410.0,0.45927773]
[1758904482188,1.31407873,109420.0,109410.0,0.0923413]
[1758904482787,2.04564516,109420.0,109410.0,0.0913413]
[1758904483588,1.71407873,109420.0,109410.0,0.0913413]
[1758904483988,0.1132107,109410.0,109400.0,0.00011372]
[1758904484184,1.17634356,109410.0,109400.0,0.00011372]
[1758904484389,1.20025022,109410.0,109400.0,0.00011372]
[1758904484784,0.1246147,109390.0,109380.0,0.091366]
[1758904484979,1.30854113,109390.0,109380.0,0.091366]
[1758904485385,1.30854113,109390.0,109380.0,0.114636]
[1758904485685,1.21717643,109390.0,109380.0,0.091366]
[1758904485889,0.87419,109390.0,109380.0,0.129306]
[1758904486088,0.02187,109390.0,109380.0,0.46087243]
[1758904486390,0.48283643,109390.0,109380.0,0.46087243]
[1758904486590,0.02187,109390.0,109380.0,0.86087243]
[1758904486802,0.44688614,109410.0,109400.0,0.1282895]
[1758904487102,0.75846494,109410.0,109400.0,0.1282895]
[1758904487303,1.61078494,109410.0,109400.0,0.1282895]
[1758904487600,1.03899368,109410.0,109400.0,0.1282895]
[1758904487800,1.60878494,109410.0,109400.0,0.1282895]
[1758904487997,0.84780664,109410.0,109400.0,0.1282895]
[1758904488395,1.27721851,109410.0,109400.0,0.1282895]
[1758904488595,0.42489851,109410.0,109400.0,0.1282895]
[1758904488795,1.36956021,109410.0,109400.0,0.1282895]
[1758904488996,1.27821851,109410.0,109400.0,0.1282895]
[1758904489197,1.36956021,109410.0,109400.0,0.1282895]
[1758904489502,0.51724021,109410.0,109400.0,0.1282895]
[1758904489698,1.14041851,109410.0,109400.0,0.1282895]
[1758904489904,0.1182229,109410.0,109400.0,0.1292895]
[1758904490101,0.42589851,109410.0,109400.0,0.1292895]
[1758904490291,1.16169851,109410.0,109400.0,0.1292895]
[1758904491498,1.27821851,109410.0,109400.0,0.1292895]
[1758904491700,0.42589851,109410.0,109400.0,0.1292895]
[1758904491896,0.42589851,109410.0,109400.0,0.46085593]
[1758904492104,1.03365851,109410.0,109400.0,0.46085593]
[1758904492504,0.42589851,109410.0,109400.0,0.46085593]
[1758904492803,0.09433208,109410.0,109400.0,0.1292895]
[1758904493010,0.07246208,109410.0,109400.0,0.82402417]
[1758904493604,0.07246208,109410.0,109400.0,0.5292895]
[1758904493805,0.38906675,109410.0,109400.0,0.1292895]
[1758904494008,0.09433208,109410.0,109400.0,0.1292895]
[1758904494406,0.18567328,109410.0,109400.0,0.1292895]
[1758904494708,0.48040795,109410.0,109400.0,0.1292895]
[1758904495603,0.1132196,109400.0,109390.0,0.1282939]
[1758904495807,1.26015427,109400.0,109390.0,0.1282939]
[1758904496111,1.26015427,109400.0,109390.0,0.1292939]
[1758904496614,0.9654196,109400.0,109390.0,0.1292939]
[1758904497408,0.9767996,109400.0,109390.0,0.0923539]
[1758904500302,0.9767996,109400.0,109390.0,0.1156239]
[1758904500504,0.9654196,109400.0,109390.0,0.1156239]
[1758904500709,0.9654196,109400.0,109390.0,0.1292939]
[1758904501013,1.2856588,109400.0,109390.0,0.0923539]
[1758904501613,1.6856588,109400.0,109390.0,0.0913539]
[1758904501816,0.8334588,109400.0,109390.0,0.0913539]
[1758904502006,1.6855388,109400.0,109390.0,0.0913539]
[1758904502208,1.3766796,109400.0,109390.0,0.0913539]
[1758904502407,0.5245996,109400.0,109390.0,0.0913539]
[1758904502907,0.113228,109390.0,109380.0,0.1282986]
[1758904503108,0.4220872,109390.0,109380.0,0.0913586]
[1758904503308,0.4220872,109390.0,109380.0,0.0923586]
[1758904503815,0.113228,109390.0,109380.0,0.0923586]
[1758904504719,0.113228,109390.0,109380.0,0.0943586]
[1758904506106,0.02187,109390.0,109380.0,0.1304386]
[1758904506507,0.59155,109390.0,109380.0,0.1304386]
[1758904506708,0.02187,109390.0,109380.0,0.1304386]
[1758904507117,0.7087487,109390.0,109380.0,0.1304386]
[1758904507511,0.9652687,109390.0,109380.0,0.1304386]
[1758904508415,0.1132287,109390.0,109380.0,0.1304386]
[1758904508717,0.12214572,109390.0,109380.0,0.1304386]
[1758904508916,0.03078702,109390.0,109380.0,0.1304386]
[1758904509119,0.68442702,109390.0,109380.0,0.1304386]
[1758904509315,0.63474702,109390.0,109380.0,0.1304386]
[1758904509516,0.72610552,109390.0,109380.0,0.1304386]
[1758904510016,0.72610552,109390.0,109380.0,0.1294386]
[1758904510217,0.63474702,109390.0,109380.0,0.1304386]
[1758904511018,0.02187,109390.0,109380.0,0.1304386]
[1758904511318,0.53024,109390.0,109380.0,0.1304386]
[1758904511624,0.02107,109390.0,109380.0,0.1304386]
[1758904511816,0.1126904,109400.0,109390.0,0.1271586]
[1758904512016,0.1126904,109400.0,109390.0,0.1281586]
[1758904512219,0.02134,109400.0,109390.0,0.1281586]
[1758904512424,0.1126902,109400.0,109390.0,0.1281586]
[1758904512723,0.8733,109400.0,109390.0,0.1281586]
[1758904513325,0.88245879,109400.0,109390.0,0.1281586]
[1758904513527,0.03049879,109400.0,109390.0,0.1281586]
[1758904513822,0.55889879,109400.0,109390.0,0.1281586]
[1758904514020,0.65024909,109400.0,109390.0,0.1281586]
[1758904514320,0.65024909,109400.0,109390.0,0.1147686]
[1758904514626,0.65024909,109400.0,109390.0,0.1281586]
[1758904514825,0.66162909,109400.0,109390.0,0.0923586]
[1758904515025,0.97048829,109400.0,109390.0,0.0923587]
[1758904515322,1.37048829,109400.0,109390.0,0.0913587]
[1758904515721,0.1127014,109390.0,109380.0,0.0913613]
[1758904515919,0.4215606,109390.0,109380.0,0.0923613]
[1758904516222,0.4215606,109390.0,109380.0,0.0913613]
[1758904516621,0.40762679,109390.0,109380.0,0.0913613]
[1758904517628,0.40762679,109390.0,109380.0,0.0933613]
[1758904518927,0.40762679,109390.0,109380.0,0.0943613]
[1758904519330,0.1127014,109390.0,109380.0,0.0943613]
[1758904519627,0.40762679,109390.0,109380.0,0.0943613]
[1758904520228,0.40762679,109390.0,109380.0,0.003]
[1758904520524,0.40762679,109390.0,109380.0,0.002]
[1758904520727,0.40762679,109390.0,109380.0,0.0933672]
[1758904521024,1.25950679,109390.0,109380.0,0.1157772]
[1758904521324,1.25950679,109390.0,109380.0,0.1291672]
[1758904522019,1.25950679,109390.0,109380.0,0.0943672]
[1758904522621,1.25950679,109390.0,109380.0,0.003]
[1758904522823,1.25950679,109390.0,109380.0,0.002]
[1758904523029,1.25950679,109390.0,109380.0,0.003]
[1758904524228,1.25950679,109390.0,109380.0,0.002]
[1758904524432,1.65958676,109390.0,109380.0,0.002]
[1758904524630,1.68347175,109390.0,109380.0,0.002]
[1758904525430,0.0913674,109380.0,109370.0,0.0913746]
[1758904525629,0.42120279,109380.0,109370.0,0.0923746]
[1758904525829,1.27308279,109380.0,109370.0,0.001]
[1758904526034,0.0913757,109370.0,109360.0,1.6050481]
[1758904526233,0.38630109,109370.0,109360.0,1.6050481]
[1758904526433,0.40764109,109370.0,109360.0,0.1284638]
[1758904526734,0.40764109,109370.0,109360.0,0.001]
[1758904527430,0.48139393,109370.0,109360.0,0.001]
[1758904527630,0.1241039,109360.0,109350.0,0.0913896]
[1758904527836,1.27102332,109360.0,109350.0,0.0913896]
[1758904528232,1.27102332,109360.0,109350.0,0.0923896]
[1758904529536,0.0913922,109350.0,109340.0,0.1047852]
[1758904529834,0.40765759,109350.0,109340.0,0.001]
[1758904530935,0.40765759,109350.0,109340.0,0.0924002]
[1758904531138,1.25961759,109350.0,109340.0,0.0924002]
[1758904531631,0.40765759,109350.0,109340.0,0.0924002]
[1758904531835,1.25961759,109350.0,109340.0,0.0924002]
[1758904532137,0.40765759,109350.0,109340.0,0.0924002]
[1758904532337,1.25965759,109350.0,109340.0,1.5924002]
[1758904532725,0.40765759,109350.0,109340.0,1.5924002]
[1758904532930,1.25965759,109350.0,109340.0,0.0924002]
[1758904533136,0.40765759,109350.0,109340.0,0.0924002]
[1758904533339,0.32522053,109350.0,109340.0,0.1282002]
[1758904533841,0.88066053,109350.0,109340.0,0.1282002]
[1758904534028,0.58573514,109350.0,109340.0,0.1282002]
[1758904534226,0.88066053,109350.0,109340.0,0.1282002]
[1758904534433,1.26861253,109350.0,109340.0,0.1282002]
[1758904534837,0.03029514,109350.0,109340.0,0.1282002]
[1758904535038,0.02134,109350.0,109340.0,0.5282002]
[1758904535237,0.19426,109350.0,109340.0,0.5282002]
[1758904535438,0.87334,109350.0,109340.0,0.5282002]
[1758904535743,0.40772612,109360.0,109350.0,0.127192]
[1758904536039,0.87341403,109360.0,109350.0,0.128192]
[1758904536240,0.31633942,109360.0,109350.0,0.128192]
[1758904536435,0.94061942,109360.0,109350.0,0.128192]
[1758904536639,1.16837942,109360.0,109350.0,0.128192]
[1758904536838,1.26076292,109360.0,109350.0,0.128192]
[1758904537039,0.03176805,109360.0,109350.0,0.128192]
[1758904537242,0.37020805,109360.0,109350.0,0.528192]
[1758904537843,0.03176805,109360.0,109350.0,0.528192]
[1758904538035,0.88380805,109360.0,109350.0,0.528192]
[1758904538347,0.02241403,109360.0,109350.0,0.528192]
[1758904538536,0.57887403,109360.0,109350.0,0.528192]
[1758904538938,0.60021403,109360.0,109350.0,0.528192]
[1758904539139,0.6094413,109360.0,109350.0,0.528192]
[1758904539544,0.700825,109360.0,109350.0,0.128192]
[1758904539746,0.6094413,109360.0,109350.0,0.128192]
[1758904539948,0.00107403,109360.0,109350.0,0.42211739]
[1758904540253,0.00107403,109360.0,109350.0,0.42311739]
[1758904540545,0.00107403,109360.0,109350.0,0.82311739]
[1758904541746,0.00107403,109360.0,109350.0,0.528192]
[1758904541938,0.02241403,109360.0,109350.0,0.128192]
[1758904542833,0.00107403,109360.0,109350.0,0.128192]
[1758904543038,0.00107403,109360.0,109350.0,0.61963729]
[1758904543546,0.00107403,109360.0,109350.0,0.91456268]
[1758904545842,0.00107403,109360.0,109350.0,1.76660268]
[1758904546035,0.00107403,109360.0,109350.0,1.77580258]
[1758904546439,0.07375284,109370.0,109360.0,0.42080899]
[1758904546640,0.55616959,109390.0,109380.0,0.0345]
[1758904546641,0.57828959,109390.0,109380.0,0.0345]
[1758904546835,0.57828959,109390.0,109380.0,0.1268669]
[1758904547042,0.57828959,109390.0,109380.0,0.1258669]
[1758904547342,0.40847157,109390.0,109380.0,0.1258669]
[1758904547549,0.40847157,109390.0,109380.0,0.1268669]
[1758904548648,0.02218198,109390.0,109380.0,0.1268669]
[1758904548849,6.198e-05,109390.0,109380.0,0.1268669]
[1758904549037,0.03117634,109390.0,109380.0,0.1268669]
[1758904549246,0.12253484,109390.0,109380.0,0.1268669]
[1758904549443,0.41746023,109390.0,109380.0,0.1268669]
[1758904549653,0.41746023,109390.0,109380.0,0.1278669]
[1758904549654,0.12853484,109390.0,109380.0,0.1278669]
[1758904549851,0.42346023,109390.0,109380.0,0.1278669]
[1758904550546,0.12853484,109390.0,109380.0,0.1278669]
[1758904550747,0.33210173,109390.0,109380.0,0.1278669]
[1758904551644,0.12853474,109390.0,109380.0,0.1278669]
[1758904551944,0.42346013,109390.0,109380.0,0.1278669]
[1758904552945,0.12853474,109390.0,109380.0,0.1278669]
[1758904553144,0.42346013,109390.0,109380.0,0.1278669]
[1758904554652,0.46024954,109390.0,109380.0,0.1278669]
[1758904555250,0.46024954,109390.0,109380.0,0.114247]
[1758904556240,0.86024954,109390.0,109380.0,0.001]
[1758904556447,1.19196434,109390.0,109380.0,0.001]
[1758904557849,2.04380434,109390.0,109380.0,0.001]
[1758904558055,1.19196434,109390.0,109380.0,0.001]
[1758904558255,2.04380434,109390.0,109380.0,0.001]
[1758904558452,2.04380434,109390.0,109380.0,0.0923669]
[1758904558955,1.71208954,109390.0,109380.0,0.001]
[1758904559249,1.19196434,109390.0,109380.0,0.001]
[1758904559451,1.71208954,109390.0,109380.0,0.001]
[1758904559750,1.19196434,109390.0,109380.0,0.001]
[1758904559960,1.19196434,109390.0,109380.0,0.0355]
[1758904560152,1.71208954,109390.0,109380.0,0.0355]
[1758904560656,1.71208954,109390.0,109380.0,0.1142468]
[1758904561161,1.71208954,109390.0,109380.0,0.0923668]
[1758904562556,1.71208954,109390.0,109380.0,0.001]
[1758904562755,2.04380434,109390.0,109380.0,0.001]
[1758904563057,2.06762947,109390.0,109380.0,0.001]
[1758904563249,0.1270656,109370.0,109360.0,0.091382]
[1758904563451,0.1270656,109370.0,109360.0,0.092382]
[1758904563452,1.3106204,109370.0,109360.0,0.092382]
[1758904563652,1.3106204,109370.0,109360.0,0.001]
[1758904564353,0.1135035,109360.0,109350.0,0.1266547]
[1758904564554,0.44528028,109360.0,109350.0,0.0913919]
[1758904564755,0.44528028,109360.0,109350.0,0.02288]
[1758904564950,0.11356548,109360.0,109350.0,0.1142719]
[1758904565160,0.44528028,109360.0,109350.0,0.1142719]
[1758904565359,1.29712028,109360.0,109350.0,0.1142719]
[1758904565761,1.3704705,109360.0,109350.0,0.0923919]
[1758904566163,0.5186305,109360.0,109350.0,0.0923919]
[1758904566365,1.3704705,109360.0,109350.0,0.1136419]
[1758904567055,1.3724705,109360.0,109350.0,0.1136419]
[1758904567255,1.3724705,109360.0,109350.0,0.0923919]
[1758904567958,0.5206305,109360.0,109350.0,0.0923919]
[1758904568162,0.5206305,109360.0,109350.0,0.1136419]
[1758904568362,1.3725105,109360.0,109350.0,0.0923919]
[1758904569365,0.5206305,109360.0,109350.0,0.1136419]
[1758904569664,1.3725105,109360.0,109350.0,0.1136419]
[1758904569858,1.3725105,109360.0,109350.0,0.1126419]
[1758904570063,1.3725105,109360.0,109350.0,0.1136419]
[1758904570265,0.429247,109360.0,109350.0,0.1263819]
[1758904570467,1.281127,109360.0,109350.0,0.1263819]
[1758904570864,1.281127,109360.0,109350.0,0.4580967]
[1758904571066,1.281127,109360.0,109350.0,0.1263819]
[1758904571266,0.429247,109360.0,109350.0,0.1263819]
[1758904571464,1.281167,109360.0,109350.0,0.1263819]
[1758904571768,0.429247,109360.0,109350.0,0.1263819]
[1758904571973,1.281167,109360.0,109350.0,0.1263819]
[1758904572160,1.281167,109360.0,109350.0,0.8580967]
[1758904572661,0.0754122,109360.0,109350.0,0.8580967]
[1758904573973,0.1892358,109360.0,109350.0,0.8580967]
[1758904574161,0.0978522,109360.0,109350.0,0.8580967]
[1758904574964,0.0978522,109360.0,109350.0,0.5263819]
[1758904575263,0.0978522,109360.0,109350.0,0.8580967]
[1758904575571,0.0978522,109360.0,109350.0,0.5263819]
[1758904575773,0.0978522,109360.0,109350.0,0.8580967]
[1758904576071,0.0754122,109360.0,109350.0,0.8580967]
[1758904577765,0.0754122,109360.0,109350.0,1.28125679]
[1758904579779,0.0754122,109360.0,109350.0,0.61782719]
[1758904580079,0.0754122,109360.0,109350.0,2.13317679]
[1758904581580,0.98735276,109390.0,109380.0,0.1276565]
[1758904581776,0.98735276,109390.0,109380.0,0.1286565]
[1758904581974,0.03143436,109390.0,109380.0,0.4603713]
[1758904582175,0.8172756,109400.0,109390.0,0.1276481]
[1758904582481,1.1489904,109400.0,109390.0,0.1276481]
[1758904582977,1.1489904,109400.0,109390.0,0.03629]
[1758904583173,0.1137984,109390.0,109380.0,0.1286503]
[1758904583374,0.4455132,109390.0,109380.0,0.1296503]
[1758904583874,0.42828149,109390.0,109380.0,0.4603651]
[1758904584082,0.40584149,109390.0,109380.0,0.4603651]
[1758904584278,0.07412669,109390.0,109380.0,0.4603651]
[1758904584478,1.16605108,109400.0,109390.0,0.1276484]
[1758904584676,1.16605108,109400.0,109390.0,0.4603632]
[1758904584981,1.15805108,109400.0,109390.0,0.1276484]
[1758904586484,1.16505108,109400.0,109390.0,0.1286484]
[1758904586885,1.16505108,109400.0,109390.0,0.1296484]
[1758904587384,1.16205108,109400.0,109390.0,0.1286484]
[1758904587987,1.16205108,109400.0,109390.0,0.1286482]
[1758904588778,1.23489219,109400.0,109390.0,0.1286482]
[1758904589190,1.23489219,109400.0,109390.0,0.001]
[1758904589781,1.23489219,109400.0,109390.0,0.02355]
[1758904590286,1.23489219,109400.0,109390.0,0.114908]
[1758904594486,1.23489219,109400.0,109390.0,0.02355]
[1758904594679,0.113798,109390.0,109380.0,0.1276536]
[1758904594880,0.4579728,109390.0,109380.0,0.0913636]
[1758904595187,0.1138064,109380.0,109370.0,0.1276581]
[1758904595387,1.2972412,109380.0,109370.0,0.1276581]
[1758904595587,1.2972412,109380.0,109370.0,0.1286581]
[1758904596895,1.2982412,109380.0,109370.0,0.1286581]
[1758904597393,0.4465212,109380.0,109370.0,0.1286581]
[1758904597588,1.2016814,109380.0,109370.0,0.1286581]
[1758904597982,1.2016812,109380.0,109370.0,0.4603729]
[1758904598191,0.3551548,109380.0,109370.0,0.4603729]
[1758904598494,1.0412348,109380.0,109370.0,0.4603729]
[1758904598794,1.2982012,109380.0,109370.0,0.4603729]
[1758904599896,1.2982012,109380.0,109370.0,0.4593729]
[1758904600094,1.2982012,109380.0,109370.0,0.4603729]
[1758904601093,1.2068348,109380.0,109370.0,0.4603729]
[1758904601293,1.2982014,109380.0,109370.0,0.4603729]
[1758904601486,1.2982014,109380.0,109370.0,0.1286581]
[1758904602495,0.9664866,109380.0,109370.0,0.1286581]
[1758904602798,1.2982014,109380.0,109370.0,0.1286581]
[1758904603392,0.9664866,109380.0,109370.0,0.1286581]
[1758904603599,1.2982014,109380.0,109370.0,0.1286581]
[1758904604192,0.9664866,109380.0,109370.0,0.1286581]
[1758904604396,1.2982014,109380.0,109370.0,0.1286581]
[1758904604696,1.2982014,109380.0,109370.0,0.4603729]
[1758904605799,1.2982014,109380.0,109370.0,0.1286581]
[1758904606091,1.2982014,109380.0,109370.0,0.4603729]
[1758904607194,0.9664866,109380.0,109370.0,0.4603729]
[1758904607395,1.2067948,109380.0,109370.0,0.4603729]
[1758904607592,0.3551548,109380.0,109370.0,0.4603729]
[1758904608094,0.4465216,109380.0,109370.0,0.4603729]
[1758904608292,0.02344,109380.0,109370.0,0.4603729]
[1758904608493,0.73811,109380.0,109370.0,0.4603729]
[1758904608799,0.73811,109380.0,109370.0,0.1286581]
[1758904609997,0.73811,109380.0,109370.0,0.5286581]
[1758904610196,0.73811,109380.0,109370.0,0.8603729]
[1758904610391,0.02391,109380.0,109370.0,0.8603729]
[1758904610894,0.3556248,109380.0,109370.0,0.8603729]
[1758904611692,0.3556248,109380.0,109370.0,0.5286581]
[1758904611994,0.3556248,109380.0,109370.0,0.8603729]
[1758904612397,0.3556248,109380.0,109370.0,0.5286581]
[1758904612797,0.3556248,109380.0,109370.0,0.8603729]
[1758904613896,0.4469915,109380.0,109370.0,0.8603729]
[1758904614100,0.4469915,109380.0,109370.0,0.5286581]
[1758904614292,0.4469915,109380.0,109370.0,0.8603729]
[1758904614599,0.1152767,109380.0,109370.0,0.5286581]
[1758904615989,0.1152767,109380.0,109370.0,0.1286581]
[1758904621404,0.001,109380.0,109370.0,0.42354014]
[1758904621595,0.001,109380.0,109370.0,0.82354014]
[1758904622307,0.001,109380.0,109370.0,0.91496871]
[1758904622897,0.02391,109380.0,109370.0,0.91496871]
[1758904623601,0.001,109380.0,109370.0,0.91496871]
[1758904623801,0.02391,109380.0,109370.0,0.91496871]
[1758904624106,0.001,109380.0,109370.0,0.91496871]
[1758904624503,0.02391,109380.0,109370.0,0.91496871]
[1758904627210,0.001,109380.0,109370.0,0.91496871]
[1758904629508,0.001,109380.0,109370.0,0.99688079]
[1758904629910,0.001,109380.0,109370.0,0.99588079]
[1758904630207,0.001,109380.0,109370.0,0.99688079]
[1758904630509,0.19431859,109400.0,109390.0,0.1253179]
[1758904630698,0.19431859,109400.0,109390.0,0.42119994]
[1758904630898,0.19431859,109400.0,109390.0,0.42019994]
[1758904631313,0.10296669,109400.0,109390.0,0.42019994]
[1758904631511,0.10296669,109400.0,109390.0,0.42119994]
[1758904631709,0.08190669,109400.0,109390.0,0.42119994]
[1758904632011,0.02303,109400.0,109390.0,0.1263179]
[1758904632203,0.02303,109400.0,109390.0,0.42119994]
[1758904632802,0.02603,109400.0,109390.0,0.42119994]
[1758904633213,0.003,109400.0,109390.0,0.42119994]
[1758904633713,0.02403,109400.0,109390.0,0.42119994]
[1758904634215,0.001,109400.0,109390.0,0.42119994]
[1758904634606,0.001,109400.0,109390.0,0.51261179]
[1758904635008,0.07232097,109400.0,109390.0,0.51261179]
[1758904635208,0.07232097,109400.0,109390.0,0.91261179]
[1758904636106,0.07132097,109400.0,109390.0,0.91261179]
[1758904636301,0.1143644,109420.0,109410.0,0.1270324]
[1758904636508,0.02303,109420.0,109410.0,0.1270324]
[1758904636816,0.02303,109420.0,109410.0,0.42191444]
[1758904637001,0.42303,109420.0,109410.0,0.42191444]
[1758904637708,0.4,109420.0,109410.0,0.42291444]
[1758904637909,0.42303,109420.0,109410.0,0.42291444]
[1758904638911,0.43218731,109420.0,109410.0,0.42291444]
[1758904639115,0.43518731,109420.0,109410.0,0.42291444]
[1758904639613,0.10699211,109420.0,109410.0,0.42291444]
[1758904641817,0.0978348,109420.0,109410.0,0.42291444]
[1758904642114,0.0748048,109420.0,109410.0,0.42291444]
[1758904643018,0.0748048,109420.0,109410.0,0.51430958]
[1758904643311,0.0728048,109420.0,109410.0,0.51430958]
[1758904643516,0.001,109420.0,109410.0,0.51430958]
[1758904644613,0.07262944,109420.0,109410.0,0.51430958]
[1758904646508,0.09565944,109420.0,109410.0,0.51430958]
[1758904646708,0.18699344,109420.0,109410.0,0.21942754]
[1758904646916,0.18699344,109420.0,109410.0,0.51430958]
[1758904647115,0.18699344,109420.0,109410.0,0.21942754]
[1758904648013,0.09565944,109420.0,109410.0,0.21942754]
[1758904648921,0.09565944,109420.0,109410.0,0.51430958]
[1758904654416,0.09565944,109420.0,109410.0,0.21942754]
[1758904654717,0.09565944,109420.0,109410.0,0.51430958]
[1758904654914,0.07262944,109420.0,109410.0,0.51430958]
[1758904658214,0.1143442,109450.0,109440.0,0.1270081]
[1758904658414,0.21188833,109450.0,109440.0,0.1270081]
[1758904658815,0.22107328,109450.0,109440.0,0.1270081]
[1758904659019,0.19732312,109450.0,109440.0,0.03569]
[1758904659219,0.51595932,109450.0,109440.0,0.03569]
[1758904659813,0.52195932,109450.0,109440.0,0.03669]
[1758904660220,0.49820516,109450.0,109440.0,0.03669]
[1758904660418,0.52196431,109450.0,109440.0,0.001]
[1758904661224,0.92196431,109450.0,109440.0,0.001]
[1758904661822,0.52196431,109450.0,109440.0,0.001]
[1758904662426,0.5369263,109430.0,109420.0,0.1270196]
[1758904662728,0.5582263,109430.0,109420.0,0.1280196]
[1758904663731,0.5612263,109430.0,109420.0,0.1280196]
[1758904663930,0.85610834,109430.0,109420.0,0.1280196]
[1758904664230,0.5612263,109430.0,109420.0,0.1280196]
[1758904665233,0.85610834,109430.0,109420.0,0.1280196]
[1758904666341,0.5612263,109430.0,109420.0,0.1280196]
[1758904668244,0.85610834,109430.0,109420.0,0.1280196]